[Event "Moscow Youth U19 2019"]
[Site "Moscow"]
[Date "2019.11.22"]
[Round "5.5"]
[White "Snegovsky-Orlov, Alexandr"]
[Black "Uskov, Alexandr A."]
[Result "1/2-1/2"]
[ECO "D10"]
[WhiteElo "1736"]
[BlackElo "1893"]
[Annotator "NA"]
[PlyCount "163"]
[EventDate "2019.11.18"]
[EventType "swiss"]
[EventCountry "RUS"]
[SourceTitle "playchess.com"]
[Source "ChessBase"]
[SourceQuality "1"]
[TimeControl "5400+30"]

1. d4 {[%emt 0:00:00]} d5 {[%emt 0:00:00]} 2. c4 {[%emt 0:00:00]} c6 {[%emt 0:00:00]} 3. Nc3 {[%emt 0:00:00]} Nf6 {[%emt 0:00:00]} 4. e3 {[%emt 0:00:00]} Bg4 {[%emt 0:00:26]} 5. Qb3 {[%emt 0:01:26]} Qd7 {[%emt 0:00:14]} 6. cxd5 {[%emt 0:01:33]} cxd5 {[%emt 0:00:05]} 7. Bd3 {[%emt 0:01:02]} Nc6 {[%emt 0:01:49]} 8. f3 {[%emt 0:01:45]} Bh5 {[%emt 0:00:29]} 9. Nge2 {[%emt 0:00:30]} e6 {[%emt 0:01:43]} 10. O-O {[%emt 0:04:51]} Bg6 {[%emt 0:05:13]} 11. Nf4 {[%emt 0:09:13]} Bd6 {[%emt 0:00:39]} 12. Nce2 {[%emt 0:00:15]} Bxd3 {[%emt 0:03:52]} 13. Nxd3 {[%emt 0:00:59]} e5 {[%emt 0:00:11]} 14. dxe5 {[%emt 0:03:03]} Nxe5 {[%emt 0:00:07]} 15. Ndf4 {[%emt 0:03:06]} O-O {[%emt 0:01:51]} 16. Nc3 {[%emt 0:03:59]} Nc4 {[%emt 0:08:51]} 17. Rd1 {[%emt 0:11:41]} Bxf4 {[%emt 0:01:05]} 18. exf4 {[%emt 0:00:38]} Qc6 {[%emt 0:02:05]} 19. Qb5 {[%emt 0:02:18]} Rfe8 {[%emt 0:02:59]} 20. Qxc6 {[%emt 0:01:53]} bxc6 {[%emt 0:00:08]} 21. b3 {[%emt 0:00:10]} Nd6 {[%emt 0:05:28]} 22. Bb2 {[%emt 0:02:13]} Rab8 {[%emt 0:02:04]} 23. Na4 {[%emt 0:02:12]} Nd7 {[%emt 0:01:18]} 24. Rac1 {[%emt 0:00:51]} Rbc8 {[%emt 0:00:45]} 25. Kf2 {[%emt 0:02:15]} f6 {[%emt 0:00:35]} 26. Rc2 {[%emt 0:01:46]} Nb6 {[%emt 0:03:39]} 27. Nc5 {[%emt 0:01:02]} Nf5 {[%emt 0:02:12]} 28. Bd4 {[%emt 0:02:39]} Kf7 {[%emt 0:00:58]} 29. a4 {[%emt 0:05:42]} Re7 {[%emt 0:01:34]} 30. g4 {[%emt 0:01:56]} Nxd4 {[%emt 0:01:47]} 31. Rxd4 {[%emt 0:00:43]} Nd7 {[%emt 0:01:20]} 32. Nb7 {[%emt 0:07:31]} Kf8 {[%emt 0:06:04]} 33. Nd6 {[%emt 0:00:48]} Rd8 {[%emt 0:02:13]} 34. Rxc6 {[%emt 0:01:43]} Nb8 {[%emt 0:00:06]} 35. Rc8 {[%emt 0:00:07]} Rxc8 {[%emt 0:00:02]} 36. Nxc8 {[%emt 0:00:06]} Rd7 {[%emt 0:00:05]} 37. Rd1 {[%emt 0:14:28]} Ke8 {[%emt 0:03:31]} 38. b4 {[%emt 0:00:23]} d4 {[%emt 0:08:24]} 39. Ke2 {[%emt 0:00:52]} Kd8 {[%emt 0:01:10]} 40. Rc1 {[%emt 0:00:26]} d3+ {[%emt 0:00:15]} 41. Kd2 {[%emt 0:00:10]} Na6 {[%emt 0:01:04]} 42. b5 {[%emt 0:00:56]} Nb4 {[%emt 0:00:05]} 43. b6 {[%emt 0:00:29]} axb6 {[%emt 0:03:54]} 44. Nxb6 {[%emt 0:00:05]} Rb7 {[%emt 0:00:23]} 45. a5 {[%emt 0:00:22]} Rc7 {[%emt 0:04:21]} 46. Rxc7 {[%emt 0:00:42]} Kxc7 {[%emt 0:00:07]} 47. Nc4 {[%emt 0:00:19]} Kc6 {[%emt 0:00:13]} 48. Nb2 {[%emt 0:01:36]} Kb5 {[%emt 0:00:40]} 49. Nxd3 {[%emt 0:00:09]} Nc6 {[%emt 0:01:07]} 50. a6 {[%emt 0:00:45]} Kxa6 {[%emt 0:00:06]} 51. Nc5+ {[%emt 0:00:07]} Kb5 {[%emt 0:00:41]} 52. Ne6 {[%emt 0:00:10]} g6 {[%emt 0:06:10]} 53. Nf8 {[%emt 0:00:20]} Ne7 {[%emt 0:00:15]} 54. Nxh7 {[%emt 0:00:18]} Nd5 {[%emt 0:00:12]} 55. h4 {[%emt 0:06:40]} Kc5 {[%emt 0:03:33]} 56. f5 {[%emt 0:04:43]} gxf5 {[%emt 0:00:08]} 57. Nf8 {[%emt 0:01:28]} fxg4 {[%emt 0:00:57]} 58. fxg4 {[%emt 0:00:04]} Kd6 {[%emt 0:00:24]} 59. Ng6 {[%emt 0:00:31]} Ke6 {[%emt 0:01:13]} 60. h5 {[%emt 0:00:52]} Kf7 {[%emt 0:06:11]} 61. Kd3 {[%emt 0:00:09]} Nc7 {[%emt 0:13:29]} 62. Nf4 {[%emt 0:00:50]} Na6 {[%emt 0:00:00]} 63. Ke4 {[%emt 0:00:42]} Nb4 {[%emt 0:00:00]} 64. Nd5 {[%emt 0:01:07]} Nc6 {[%emt 0:00:00]} 65. Kf4 {[%emt 0:00:26]} Nd4 {[%emt 0:00:00]} 66. Ne3 {[%emt 0:01:05]} Nc6 {[%emt 0:00:00]} 67. Nf5 {[%emt 0:00:12]} Ne5 {[%emt 0:00:00]} 68. Nd6+ {[%emt 0:01:07]} Ke6 {[%emt 0:00:00]} 69. Nf5 {[%emt 0:00:38]} Kf7 {[%emt 0:00:00]} 70. Nh4 {[%emt 0:00:07]} Nc6 {[%emt 0:00:15]} 71. Nf3 {[%emt 0:00:05]} Ne7 {[%emt 0:00:20]} 72. Nd4 {[%emt 0:00:26]} Nd5+ {[%emt 0:00:15]} 73. Ke4 {[%emt 0:00:14]} Nc3+ {[%emt 0:00:19]} 74. Kf5 {[%emt 0:00:22]} Nd5 {[%emt 0:00:07]} 75. Nb5 {[%emt 0:00:31]} Ne7+ {[%emt 0:00:44]} 76. Kf4 {[%emt 0:00:22]} Ke6 {[%emt 0:01:23]} 77. Nc7+ {[%emt 0:00:48]} Kd7 {[%emt 0:00:51]} 78. h6 {[%emt 0:01:38]} Kxc7 {[%emt 0:00:07]} 79. g5 {[%emt 0:00:46]} Kd6 {[%emt 0:00:47]} 80. gxf6 {[%emt 0:00:23]} Ng6+ {[%emt 0:00:20]} 81. Kf5 {[%emt 0:01:01]} Nf8 {[%emt 0:00:15]} 82. Ke4 {[%emt 0:01:10] Ke5+} 1/2-1/2

[Event "Moscow Youth U19 2019"]
[Site "Moscow"]
[Date "2019.11.22"]
[Round "5.6"]
[White "Gotsiuk, Denis"]
[Black "Zavialov, Nikita A."]
[Result "1/2-1/2"]
[ECO "D00"]
[WhiteElo "1976"]
[BlackElo "2066"]
[Annotator "NA"]
[PlyCount "121"]
[EventDate "2019.11.18"]
[EventType "swiss"]
[EventCountry "RUS"]
[SourceTitle "playchess.com"]
[Source "ChessBase"]
[SourceQuality "1"]
[TimeControl "5400+30"]

1. d4 {[%emt 0:00:00]} d5 {[%emt 0:03:08]} 2. Bf4 {[%emt 0:00:52]} g6 {[%emt 0:00:07]} 3. e3 {[%emt 0:00:28]} Bg7 {[%emt 0:00:18]} 4. Nf3 {[%emt 0:00:32]} c5 {[%emt 0:01:08]} 5. c3 {[%emt 0:00:43]} Qb6 {[%emt 0:05:06]} 6. Qb3 {[%emt 0:00:45]} Qxb3 {[%emt 0:07:28]} 7. axb3 {[%emt 0:00:01]} cxd4 {[%emt 0:01:37]} 8. exd4 {[%emt 0:00:03]} Nc6 {[%emt 0:03:19]} 9. b4 {[%emt 0:01:15]} f6 {[%emt 0:13:12]} 10. b5 {[%emt 0:04:01]} Nd8 {[%emt 0:00:13]} 11. c4 {[%emt 0:12:34]} g5 {[%emt 0:04:10]} 12. Be3 {[%emt 0:00:58]} g4 {[%emt 0:01:46]} 13. Nfd2 {[%emt 0:01:18]} e6 {[%emt 0:05:59]} 14. Nc3 {[%emt 0:05:53]} Ne7 {[%emt 0:00:14]} 15. g3 {[%emt 0:01:24]} b6 {[%emt 0:09:20]} 16. b4 {[%emt 0:12:48]} dxc4 {[%emt 0:02:08]} 17. Nxc4 {[%emt 0:00:16]} Bb7 {[%emt 0:01:32]} 18. Nd6+ {[%emt 0:00:10]} Kd7 {[%emt 0:02:16]} 19. Nxb7 {[%emt 0:00:07]} Nxb7 {[%emt 0:01:49]} 20. Bg2 {[%emt 0:00:25]} Rab8 {[%emt 0:19:46]} 21. Rxa7 {[%emt 0:00:56]} Rhc8 {[%emt 0:00:28]} 22. Na4 {[%emt 0:21:45]} Rc7 {[%emt 0:02:27]} 23. Nxb6+ {[%emt 0:02:16]} Kd8 {[%emt 0:04:06]} 24. Bf4 {[%emt 0:13:03]} e5 {[%emt 0:00:54]} 25. dxe5 {[%emt 0:01:43]} fxe5 {[%emt 0:00:05]} 26. Bg5 {[%emt 0:00:32]} Nd6 {[%emt 0:03:34]} 27. Rxc7 {[%emt 0:00:28]} Kxc7 {[%emt 0:00:08]} 28. Bxe7 {[%emt 0:00:12]} Rxb6 {[%emt 0:00:39]} 29. Bxd6+ {[%emt 0:00:23]} Rxd6 {[%emt 0:00:42]} 30. h3 {[%emt 0:06:19]} gxh3 {[%emt 0:00:46]} 31. Rxh3 {[%emt 0:00:08]} Rh6 {[%emt 0:01:40]} 32. Rxh6 {[%emt 0:00:59]} Bxh6 {[%emt 0:00:05]} 33. Ke2 {[%emt 0:00:44]} Bf8 {[%emt 0:00:33]} 34. Be4 {[%emt 0:04:28]} h6 {[%emt 0:01:23]} 35. Kf3 {[%emt 0:00:14]} Bxb4 {[%emt 0:00:29]} 36. Kg4 {[%emt 0:00:04]} Be1 {[%emt 0:00:37]} 37. f4 {[%emt 0:00:08]} exf4 {[%emt 0:00:47]} 38. gxf4 {[%emt 0:00:02]} Bb4 {[%emt 0:02:48]} 39. Kh5 {[%emt 0:00:10]} Bf8 {[%emt 0:02:12]} 40. Kg6 {[%emt 0:00:17]} Kb6 {[%emt 0:00:30]} 41. Bd3 {[%emt 0:01:05]} Bd6 {[%emt 0:00:25]} 42. f5 {[%emt 0:00:04]} Bf8 {[%emt 0:00:03]} 43. Be2 {[%emt 0:00:46]} Ka5 {[%emt 0:00:51]} 44. Kf7 {[%emt 0:00:20]} Bc5 {[%emt 0:00:32]} 45. Kf6 {[%emt 0:00:17]} Kb6 {[%emt 0:00:12]} 46. Ke5 {[%emt 0:01:11]} Ba3 {[%emt 0:00:51]} 47. Kd5 {[%emt 0:00:57]} Be7 {[%emt 0:00:34]} 48. Kc4 {[%emt 0:00:17]} Bg5 {[%emt 0:00:23]} 49. Bh5 {[%emt 0:00:09]} Bf6 {[%emt 0:00:28]} 50. Be2 {[%emt 0:00:19]} Bg5 {[%emt 0:00:06]} 51. Kd5 {[%emt 0:00:01]} h5 {[%emt 0:00:45]} 52. Ke4 {[%emt 0:00:56]} h4 {[%emt 0:00:13]} 53. Kf3 {[%emt 0:00:08]} Bd8 {[%emt 0:00:20]} 54. Kg4 {[%emt 0:00:04]} Be7 {[%emt 0:00:13]} 55. Bf1 {[%emt 0:00:03]} Bd8 {[%emt 0:00:07]} 56. Kh5 {[%emt 0:00:05]} h3 {[%emt 0:01:13]} 57. Kg4 {[%emt 0:00:07]} h2 {[%emt 0:00:06]} 58. Bg2 {[%emt 0:00:01]} Kxb5 {[%emt 0:00:09]} 59. Kh3 {[%emt 0:00:08]} Kc5 {[%emt 0:00:12]} 60. Kxh2 {[%emt 0:00:02]} Bf6 {[%emt 0:00:08]} 61. Bf1 {[%emt 0:14:06]} 1/2-1/2

[Event "Moscow Youth U19 2019"]
[Site "Moscow"]
[Date "2019.11.22"]
[Round "5.7"]
[White "Rysaev, Danial"]
[Black "Kozhukhov, Alexandr"]
[Result "*"]
[ECO "A32"]
[WhiteElo "2029"]
[BlackElo "1627"]
[Annotator "NA"]
[PlyCount "103"]
[EventDate "2019.11.18"]
[EventType "swiss"]
[EventCountry "RUS"]
[SourceTitle "playchess.com"]
[Source "ChessBase"]
[SourceQuality "1"]
[TimeControl "5400+30"]

1. d4 {[%emt 0:00:00]} Nf6 {[%emt 0:01:44]} 2. c4 {[%emt 0:00:00]} e6 {[%emt 0:00:13]} 3. Nf3 {[%emt 0:00:00]} c5 {[%emt 0:00:20]} 4. g3 {[%emt 0:01:46]} cxd4 {[%emt 0:00:40]} 5. Nxd4 {[%emt 0:00:21]} Nc6 {[%emt 0:00:35]} 6. Bg2 {[%emt 0:02:00]} Bc5 {[%emt 1:29:28]} 7. Nxc6 {[%emt 0:01:32] A32: Symmetrical English: 2 Nf3 Nf6 3 d4 cxd4 4 Nxd4 e6} bxc6 {[%emt 0:00:05]} 8. O-O {[%emt 0:00:16]} O-O {[%emt 0:00:45]} 9. Qa4 $146 {[%emt 0:02:09]} ({Predecessor:} 9. Nc3 d5 10. Qc2 Ba6 11. b3 Be7 12. Rd1 Qc8 13. Bb2 dxc4 14. bxc4 Rb8 15. Ne4 Nxe4 16. Bxe4 f5 17. Bf3 Rxb2 18. Qxb2 {½-½ (52) Berkes,F (2678)-Ivanisevic,I (2574) Valjevo 2018}) 9... Qb6 {[%emt 0:09:58]} 10. Nc3 {[%emt 0:02:45]} d5 {[%emt 0:10:14]} 11. Qc2 {[%emt 0:01:27]} Be7 {[%emt 0:02:49]} 12. Na4 {[%emt 0:06:31]} Qb8 {[%emt 0:09:12]} 13. b3 {[%emt 0:04:10]} Ba6 {[%emt 0:03:49]} 14. Rd1 {[%emt 0:03:17]} dxc4 {[%emt 0:08:01]} 15. Bg5 {[%emt 0:05:04]} ({But not} 15. Bxc6 cxb3 16. Qb1 Bxe2 $15) (15. bxc4 $14 Qb4 16. Nb2) 15... Qc7 {[%emt 0:08:20]} 16. Nb2 {[%emt 0:03:43]} cxb3 {[%emt 0:03:25]} 17. axb3 {[%emt 0:00:09]} Bb5 {[%emt 0:01:10]} 18. Bf4 {[%emt 0:07:42]} e5 {[%emt 0:36:37]} 19. Be3 {[%emt 0:00:06]} Bb4 $11 {[%emt 0:05:54]} 20. Nd3 {[%emt 0:02:52]} Bxd3 {[%emt 0:08:26]} 21. Rxd3 {[%emt 0:00:23]} Rfc8 {[%emt 0:05:45]} 22. Ra6 {[%emt 0:01:34]} e4 {[%emt 0:03:11]} 23. Rd4 {[%emt 0:00:37]} c5 {[%emt 0:02:15]} 24. Rc4 {[%emt 0:00:20]} h5 {[%emt 0:04:19]} 25. Rxf6 {[%emt 0:01:05]} gxf6 {[%emt 0:00:13]} 26. Bxe4 {[%emt 0:00:20]} Rab8 {[%emt 0:00:45]} 27. Bd5 {[%emt 0:01:51]} Kg7 {[%emt 0:01:59]} 28. Bf4 {[%emt 0:00:40]} Qd7 {[%emt 0:00:38]} 29. Bxb8 {[%emt 0:00:13]} Rxb8 {[%emt 0:00:22]} 30. Bf3 {[%emt 0:00:37]} Rd8 {[%emt 0:02:14]} 31. Kg2 {[%emt 0:00:00]} Qd2 {[%emt 0:00:35]} 32. Qb1 {[%emt 0:00:00]} Qg5 {[%emt 0:01:08]} 33. Rh4 {[%emt 0:01:30]} Qg6 {[%emt 0:00:41]} 34. Qa2 {[%emt 0:02:00]} a5 {[%emt 0:00:36]} 35. Bxh5 {[%emt 0:00:00]} Qf5 {[%emt 0:00:30]} 36. Bf3 {[%emt 0:03:00]} Rd2 {[%emt 0:00:53]} 37. Qa4 {[%emt 0:00:00]} Qd7 {[%emt 0:00:15]} 38. Qa1 {[%emt 0:00:00]} Qf5 {[%emt 0:00:44]} 39. Rf4 {[%emt 0:00:00]} Qe5 {[%emt 0:00:20]} 40. Qb1 {[%emt 0:05:00]} Rd4 {[%emt 0:00:35]} 41. Rf5 {[%emt 0:00:00]} Qe6 {[%emt 0:00:34]} 42. Rh5 {[%emt 0:00:00]} c4 {[%emt 0:00:34]} 43. bxc4 {[%emt 0:00:00]} Qxc4 {[%emt 0:00:11]} 44. Qf5 {[%emt 0:00:00]} Qe6 {[%emt 0:00:41]} 45. Rh7+ {[%emt 0:00:00]} Kf8 {[%emt 0:00:05]} 46. Rh8+ {[%emt 0:00:00]} Ke7 {[%emt 0:00:05]} 47. Qb5 {[%emt 0:00:00]} Qd7 {[%emt 0:01:01]} 48. Bc6 {[%emt 0:00:00]} Qc7 {[%emt 0:00:39]} 49. Re8+ {[%emt 0:00:00]} Kd6 {[%emt 0:00:08]} 50. Bf3 {[%emt 0:00:00]} Rd2 {[%emt 0:01:04]} 51. Qf5 {[%emt 0:00:00]} Bc3 {[%emt 0:00:31]} 52. Qf4+ {[%emt 0:11:00]} *

[Event "Moscow Youth U19 2019"]
[Site "Moscow"]
[Date "2019.11.22"]
[Round "5.8"]
[White "Talyzin, Valeriy"]
[Black "Buniatyan, David"]
[Result "*"]
[ECO "A05"]
[WhiteElo "1829"]
[BlackElo "1960"]
[Annotator "NA"]
[PlyCount "53"]
[EventDate "2019.11.18"]
[EventType "swiss"]
[EventCountry "RUS"]
[SourceTitle "playchess.com"]
[Source "ChessBase"]
[SourceQuality "1"]
[TimeControl "5400+30"]

1. Nf3 {[%emt 0:00:00]} Nf6 {[%emt 0:00:00]} 2. g3 {[%emt 0:00:00]} g6 {[%emt 0:00:00]} 3. Bg2 {[%emt 0:00:00]} Bg7 {[%emt 0:00:00]} 4. O-O {[%emt 1:32:00]} O-O {[%emt 0:00:06]} 5. d3 {[%emt 0:00:00]} d6 {[%emt 0:00:31]} 6. e4 {[%emt 0:00:00]} c5 {[%emt 0:00:22]} 7. Nh4 {[%emt 0:01:03]} Nc6 {[%emt 0:01:52] A05: Réti Opening: 1 Nf3 Nf6} 8. f4 {[%emt 0:00:38]} Bg4 {[%emt 0:05:27]} (8... Nd7 9. f5 b5 10. Nc3 c4 11. Kh1 cxd3 12. cxd3 Bb7 13. Bg5 Nd4 14. a3 a5 15. Ne2 Nxe2 16. Qxe2 {1-0 (60) Petrosian,T (2601)-Onischuk,V (2637) Riadh 2017}) 9. Nf3 {[%emt 0:07:42]} Nd7 $146 {[%emt 0:04:21]} ({Predecessor:} 9... Nd4 10. c3 Nxf3+ 11. Bxf3 Bxf3 12. Qxf3 b5 13. g4 Qd7 14. h3 Qc6 {1-0 (59) Ivannikau,M (1826)-Gluckman,P (1637) Al Ain 2013}) 10. h3 {[%emt 0:00:51]} Bxf3 {[%emt 0:00:41]} 11. Bxf3 {[%emt 0:00:18]} c4 {[%emt 0:03:53]} 12. c3 {[%emt 0:13:03]} cxd3 {[%emt 0:15:07]} 13. Qxd3 {[%emt 0:00:14]} Qb6+ {[%emt 0:00:20]} 14. Rf2 {[%emt 0:06:32]} Nc5 {[%emt 1:04:20]} 15. Qe2 {[%emt 0:00:39]} a6 {[%emt 0:11:31]} 16. Be3 {[%emt 1:07:00]} Qc7 {[%emt 0:01:37]} 17. h4 {[%emt 0:14:10]} b5 {[%emt 0:02:11]} 18. h5 {[%emt 0:01:58]} b4 {[%emt 0:05:15]} 19. hxg6 {[%emt 0:00:17]} hxg6 {[%emt 0:00:48]} 20. e5 {[%emt 0:01:34]} Na4 $14 {[%emt 0:04:04]} 21. f5 {[%emt 0:12:05]} gxf5 {[%emt 0:06:06]} 22. Rh2 {[%emt 0:07:33]} dxe5 {[%emt 0:09:53]} 23. Bd5 {[%emt 0:01:17]} Rfd8 {[%emt 0:04:13]} 24. Bb3 {[%emt 0:07:40]} Nb6 {[%emt 0:01:37]} 25. Qh5 {[%emt 0:01:14]} e6 {[%emt 0:01:31]} 26. Bh6 {[%emt 0:02:30]} Bf6 {[%emt 0:04:30]} 27. Bg5 {[%emt 0:04:55]} *

[Event "Moscow Youth U19 2019"]
[Site "Moscow"]
[Date "2019.11.22"]
[Round "5.8"]
[White "Talyzin, Valeriy"]
[Black "Graham, David B"]
[Result "0-1"]
[ECO "A05"]
[WhiteElo "1829"]
[BlackElo "2152"]
[Annotator "NA"]
[PlyCount "84"]
[EventDate "2019.11.18"]
[EventType "swiss"]
[EventCountry "RUS"]
[SourceTitle "playchess.com"]
[Source "ChessBase"]
[SourceQuality "1"]
[TimeControl "5400+30"]

1. Nf3 {[%emt 0:00:00]} Nf6 {[%emt 0:00:00]} 2. g3 {[%emt 0:00:00]} g6 {[%emt 0:00:00]} 3. Bg2 {[%emt 0:00:00]} Bg7 {[%emt 0:00:00]} 4. O-O {[%emt 0:00:00]} O-O {[%emt 0:00:06]} 5. d3 {[%emt 0:00:00]} d6 {[%emt 0:00:31]} 6. e4 {[%emt 0:00:00]} c5 {[%emt 0:00:22]} 7. Nh4 {[%emt 0:01:03]} Nc6 {[%emt 0:01:52]} 8. f4 {[%emt 0:00:38]} Bg4 {[%emt 0:05:27]} 9. Nf3 {[%emt 0:07:42]} Nd7 {[%emt 0:04:21]} 10. h3 {[%emt 0:00:51]} Bxf3 {[%emt 0:00:41]} 11. Bxf3 {[%emt 0:00:18]} c4 {[%emt 0:03:53]} 12. c3 {[%emt 0:13:03]} cxd3 {[%emt 0:15:07]} 13. Qxd3 {[%emt 0:00:14]} Qb6+ {[%emt 0:00:20]} 14. Rf2 {[%emt 0:06:32]} Nc5 {[%emt 0:06:06]} 15. Qe2 {[%emt 0:00:39]} a6 {[%emt 0:11:31]} 16. Be3 {[%emt 0:01:40]} Qc7 {[%emt 0:01:37]} 17. h4 {[%emt 0:14:10]} b5 {[%emt 0:02:11]} 18. h5 {[%emt 0:01:58]} b4 {[%emt 0:05:15]} 19. hxg6 {[%emt 0:00:17]} hxg6 {[%emt 0:00:48]} 20. e5 {[%emt 0:01:34]} Na4 {[%emt 0:04:04]} 21. f5 {[%emt 0:12:05]} gxf5 {[%emt 0:06:06]} 22. Rh2 {[%emt 0:07:33]} dxe5 {[%emt 0:09:53]} 23. Bd5 {[%emt 0:01:17]} Rfd8 {[%emt 0:04:13]} 24. Bb3 {[%emt 0:07:40]} Nb6 {[%emt 0:01:37]} 25. Qh5 {[%emt 0:01:14]} e6 {[%emt 0:01:31]} 26. Bh6 {[%emt 0:02:30]} Bf6 {[%emt 0:04:30]} 27. Bg5 {[%emt 0:04:55]} Bg7 {[%emt 0:03:42]} 28. Nd2 {[%emt 0:05:26]} e4 {[%emt 0:01:31]} 29. Bh6 {[%emt 0:01:16]} Qe5 {[%emt 0:00:56]} 30. Bf4 {[%emt 0:02:29]} Qc5+ {[%emt 0:00:19]} 31. Kg2 {[%emt 0:01:45]} bxc3 {[%emt 0:00:35]} 32. bxc3 {[%emt 0:01:09]} Qxc3 {[%emt 0:00:58]} 33. Rd1 {[%emt 0:01:03]} Ne5 {[%emt 0:02:07]} 34. Bg5 {[%emt 0:01:45]} Rd3 {[%emt 0:00:59]} 35. Be7 {[%emt 0:00:07]} Rxd2+ {[%emt 0:00:49]} 36. Rxd2 {[%emt 0:00:34]} Qxd2+ {[%emt 0:00:27]} 37. Kf1 {[%emt 0:00:08]} Qd3+ {[%emt 0:00:32]} 38. Re2 {[%emt 0:02:42]} Rc8 {[%emt 0:01:11]} 39. Kg1 {[%emt 0:00:45]} Rc1+ {[%emt 0:00:28]} 40. Kh2 {[%emt 0:00:08]} Ng4+ {[%emt 0:00:20]} 41. Kh3 {[%emt 0:00:09]} Rh1+ {[%emt 0:00:18]} 42. Rh2 {[%emt 0:00:03]} Rxh2# {[%emt 0:00:09]} 0-1

[Event "Moscow Youth U19 2019"]
[Site "Moscow"]
[Date "2019.11.22"]
[Round "5.9"]
[White "Budnichenko, Vladimir"]
[Black "Shlykov, Yaroslav"]
[Result "0-1"]
[ECO "B52"]
[WhiteElo "1489"]
[BlackElo "1623"]
[Annotator "NA"]
[PlyCount "176"]
[EventDate "2019.11.18"]
[EventType "swiss"]
[EventCountry "RUS"]
[SourceTitle "playchess.com"]
[Source "ChessBase"]
[SourceQuality "1"]
[TimeControl "5400+30"]

1. e4 {[%emt 0:00:00]} c5 {[%emt 0:06:33]} 2. Nf3 {[%emt 0:00:00]} d6 {[%emt 0:00:05]} 3. Bb5+ {[%emt 0:00:00]} Bd7 {[%emt 0:00:07]} 4. Bxd7+ {[%emt 0:00:00]} Qxd7 {[%emt 0:00:05]} 5. c4 {[%emt 0:00:03]} Nc6 {[%emt 0:00:10]} 6. d4 {[%emt 0:00:09]} cxd4 {[%emt 0:00:07]} 7. Nxd4 {[%emt 0:00:04]} Nf6 {[%emt 0:00:07]} 8. Nc3 {[%emt 0:00:03]} g6 {[%emt 0:00:53]} 9. O-O {[%emt 0:00:13]} Bg7 {[%emt 0:00:04]} 10. f3 {[%emt 0:01:33]} Nxe4 {[%emt 0:01:40]} 11. Nxc6 {[%emt 0:03:54]} Nxc3 {[%emt 0:00:07]} 12. Qd3 {[%emt 0:01:47]} Qxc6 {[%emt 0:00:13]} 13. bxc3 {[%emt 0:00:32]} O-O {[%emt 0:00:08]} 14. Bg5 {[%emt 0:06:42]} f6 {[%emt 0:01:01]} 15. Bd2 {[%emt 0:10:53]} Rac8 {[%emt 0:00:38]} 16. Rab1 {[%emt 0:03:36]} b6 {[%emt 0:00:16]} 17. Rb4 {[%emt 0:02:32]} Rfd8 {[%emt 0:05:40]} 18. Re1 {[%emt 0:07:11]} e5 {[%emt 0:00:14]} 19. Be3 {[%emt 0:03:38]} Bf8 {[%emt 0:00:36]} 20. Rd1 {[%emt 0:02:53]} d5 {[%emt 0:06:16]} 21. cxd5 {[%emt 0:03:16]} Qxc3 {[%emt 0:00:06]} 22. Ra4 {[%emt 0:05:51]} Qxd3 {[%emt 0:02:04]} 23. Rxd3 {[%emt 0:00:05]} Rd7 {[%emt 0:00:18]} 24. f4 {[%emt 0:10:58]} Bc5 {[%emt 0:05:49]} 25. fxe5 {[%emt 0:01:39]} fxe5 {[%emt 0:00:07]} 26. Kf2 {[%emt 0:02:41]} Kf7 {[%emt 0:01:35]} 27. Kf3 {[%emt 0:02:05]} Bxe3 {[%emt 0:04:30]} 28. Rxe3 {[%emt 0:02:12]} Kf6 {[%emt 0:06:10]} 29. Ke4 {[%emt 0:00:32]} Rc5 {[%emt 0:00:23]} 30. Rf3+ {[%emt 0:02:26]} Ke7 {[%emt 0:00:23]} 31. Rd3 {[%emt 0:00:05]} Kd6 {[%emt 0:00:21]} 32. h4 {[%emt 0:06:37]} Rdc7 {[%emt 0:00:18]} 33. g3 {[%emt 0:07:17]} Rc4+ {[%emt 0:00:08]} 34. Rxc4 {[%emt 0:00:04]} Rxc4+ {[%emt 0:00:03]} 35. Ke3 {[%emt 0:00:24]} Rg4 {[%emt 0:00:45]} 36. Kf2 {[%emt 0:00:52]} Rd4 {[%emt 0:00:25]} 37. Rf3 {[%emt 0:01:06]} Ke7 {[%emt 0:01:45]} 38. Ra3 {[%emt 0:00:51]} a5 {[%emt 0:00:32]} 39. Rb3 {[%emt 0:00:30]} Rb4 {[%emt 0:00:36]} 40. Rc3 {[%emt 0:02:48]} Kd6 {[%emt 0:00:24]} 41. a3 {[%emt 0:01:26]} Rb2+ {[%emt 0:00:26]} 42. Ke3 {[%emt 0:00:30]} Kxd5 {[%emt 0:00:12]} 43. Rc7 {[%emt 0:01:15]} Rb3+ {[%emt 0:00:05]} 44. Kf2 {[%emt 0:00:03]} Rxa3 {[%emt 0:00:09]} 45. Rxh7 {[%emt 0:00:07]} Ke6 {[%emt 0:00:04]} 46. g4 {[%emt 0:02:20]} b5 {[%emt 0:00:27]} 47. Rb7 {[%emt 0:00:44]} b4 {[%emt 0:00:06]} 48. Rb6+ {[%emt 0:00:06]} Kf7 {[%emt 0:00:26]} 49. g5 {[%emt 0:00:20]} e4 {[%emt 0:02:02]} 50. Rb7+ {[%emt 0:00:36]} Ke6 {[%emt 0:00:23]} 51. Rb6+ {[%emt 0:00:06]} Kf5 {[%emt 0:00:52]} 52. h5 {[%emt 0:02:04]} Kxg5 {[%emt 0:00:28]} 53. hxg6 {[%emt 0:00:20]} Kh6 {[%emt 0:00:08]} 54. Ke2 {[%emt 0:00:41]} e3 {[%emt 0:03:13]} 55. Kf3 {[%emt 0:00:39]} Rc3 {[%emt 0:04:01]} 56. Ra6 {[%emt 0:01:29]} Rc5 {[%emt 0:02:12]} 57. Kxe3 {[%emt 0:00:30]} b3 {[%emt 0:00:21]} 58. Kd2 {[%emt 0:01:31]} Rc2+ {[%emt 0:00:11]} 59. Kd1 {[%emt 0:00:16]} Ra2 {[%emt 0:00:05]} 60. Kc1 {[%emt 0:00:17]} a4 {[%emt 0:00:04]} 61. Rb6 {[%emt 0:00:32]} Kg7 {[%emt 0:02:14]} 62. Kb1 {[%emt 0:00:12]} Rg2 {[%emt 0:01:47]} 63. Rb4 {[%emt 0:00:32]} Ra2 {[%emt 0:01:59]} 64. Rb6 {[%emt 0:00:03]} Kh6 {[%emt 0:01:51]} 65. Kc1 {[%emt 0:00:05]} Rc2+ {[%emt 0:00:07]} 66. Kb1 {[%emt 0:00:06]} Rc4 {[%emt 0:00:08]} 67. Kb2 {[%emt 0:00:18]} Rg4 {[%emt 0:00:20]} 68. Ra6 {[%emt 0:00:59]} Kg7 {[%emt 0:00:15]} 69. Kb1 {[%emt 0:00:23]} Kf8 {[%emt 0:00:48]} 70. Ra8+ {[%emt 0:00:10]} Kg7 {[%emt 0:00:22]} 71. Ra6 {[%emt 0:00:04]} Rb4 {[%emt 0:02:10]} 72. Kb2 {[%emt 0:00:21]} Kh6 {[%emt 0:00:08]} 73. Rc6 {[%emt 0:05:03]} a3+ {[%emt 0:01:32]} 74. Kxa3 {[%emt 0:00:03]} b2 {[%emt 0:00:07]} 75. Kxb4 {[%emt 0:00:04]} b1=Q+ {[%emt 0:00:08]} 76. Kc5 {[%emt 0:00:37]} Qb2 {[%emt 0:00:11]} 77. Re6 {[%emt 0:00:29]} Kg5 {[%emt 0:00:30]} 78. Kc6 {[%emt 0:01:19]} Kf5 {[%emt 0:00:19]} 79. Rd6 {[%emt 0:00:32]} Qc3+ {[%emt 0:01:31]} 80. Kd7 {[%emt 0:00:23]} Qg7+ {[%emt 0:00:32]} 81. Kc8 {[%emt 0:01:34]} Ke5 {[%emt 0:00:34]} 82. Rc6 {[%emt 0:00:42]} Kd5 {[%emt 0:00:52]} 83. Rb6 {[%emt 0:00:30]} Qf8+ {[%emt 0:00:57]} 84. Kb7 {[%emt 0:00:26]} Qe7+ {[%emt 0:00:36]} 85. Ka6 {[%emt 0:00:51]} Qc7 {[%emt 0:01:53]} 86. Rb7 {[%emt 0:00:06]} Qc8 {[%emt 0:00:27]} 87. Ka7 {[%emt 0:01:02]} Qc5+ {[%emt 0:04:29]} 88. Kb8 {[%emt 0:00:32]} Qd6+ {[%emt 0:00:10]} 0-1